bitfinex-derivatives/quotes_ETHF0:USTF0_20260207
["timestamp","ask_amount","ask_price","bid_price","bid_amount"]
[1770458311029,11.61773036,2013.1,2012.5,0.2486]
[1770458311232,11.61773036,2013.1,2012.1,17.360102]
[1770458311430,11.61773036,2012.6,2012.2,11.41871323]
[1770458312028,11.62184922,2012.6,2012.2,11.41871323]
[1770458313931,11.62184922,2012.6,2012.1,0.24866]
[1770458314525,40.8,2012.3,2012.1,0.24866]
[1770458314725,11.4302594,2012.4,2012.0,11.41871323]
[1770458314926,11.05521921,2012.4,2012.0,11.41871323]
[1770458315226,10.49242967,2012.4,2012.1,3.22138321]
[1770458315435,10.12338967,2012.4,2012.1,3.22138321]
[1770458315731,9.56948543,2012.4,2012.1,3.22138321]
[1770458315927,9.20011666,2012.4,2012.1,3.22138321]
[1770458316131,8.83076074,2012.4,2012.1,0.24866]
[1770458316332,8.46132887,2012.4,2012.1,0.24866]
[1770458318130,0.00411886,2012.6,2012.3,11.76527806]
[1770458318434,9.54337608,2012.6,2012.2,11.76527806]
[1770458319233,9.54820453,2012.6,2012.2,11.76527806]
[1770458319429,9.54820453,2012.6,2012.3,0.24863]
[1770458319937,9.54820453,2012.6,2012.0,2.97272321]
[1770458320124,9.54820453,2012.6,2012.3,0.24863]
[1770458320732,9.54820453,2012.6,2012.1,2.97272321]
[1770458321532,10.05621116,2012.4,2012.1,2.97272321]
[1770458322230,9.50375961,2012.6,2012.2,11.76527806]
[1770458322426,9.50375961,2012.6,2012.3,11.76527806]
[1770458322624,40.8,2012.4,2012.3,11.76527806]
[1770458322825,40.8,2012.4,2012.2,14.73800127]
[1770458323527,40.8,2012.4,2012.2,14.98664127]
[1770458323726,40.8,2012.4,2012.2,3.22136321]
[1770458323934,40.8,2012.4,2012.2,14.98664127]
[1770458328334,50.34782529,2012.4,2012.1,14.7404252]
[1770458328530,50.34782529,2012.4,2012.1,2.97514714]
[1770458329241,9.54782529,2012.3,2012.1,2.97514714]
[1770458329433,50.36326294,2012.4,2012.1,14.7404252]
[1770458329633,9.56326294,2012.3,2012.0,2.37359232]
[1770458329839,47.1394758,2012.4,2012.0,11.76527806]
[1770458330347,6.3394758,2012.3,2012.0,11.76527806]
[1770458330545,6.3394758,2012.3,2011.9,11.76527806]
[1770458331541,46.72574749,2012.4,2012.2,0.24864]
[1770458331743,5.92574749,2012.3,2012.2,0.24864]
[1770458333948,5.92574749,2012.3,2012.2,0.15528243]
[1770458337152,46.85284668,2012.4,2012.2,0.15528243]
[1770458337543,5.92988847,2012.6,2012.2,11.92056049]
[1770458337947,5.92988847,2012.6,2011.6,0.00601246]
[1770458337948,5.92506002,2012.8,2012.3,12.01390806]
[1770458338545,40.8,2012.4,2012.3,0.24863]
[1770458338746,46.72506002,2012.4,2012.3,0.24863]
[1770458339143,0.00373314,2012.4,2012.3,12.01390806]
[1770458339348,5.92506002,2012.6,2012.3,0.24863]
[1770458340251,40.8,2012.4,2012.3,0.24863]
[1770458340450,6.0656809,2012.6,2012.3,12.01390806]
[1770458341154,0.00628105,2012.6,2012.3,12.01390806]
[1770458341556,0.00628105,2012.6,2011.9,5.94138877]
[1770458341557,6.03249783,2012.6,2012.0,11.76527806]
[1770458342455,5.77758678,2012.4,2012.0,12.01393806]
[1770458343759,5.77758678,2012.4,2012.1,12.01393806]
[1770458343960,5.69957779,2012.5,2012.1,12.01393806]
[1770458344359,5.69957779,2012.5,2011.9,5.94138877]
[1770458344360,5.70585884,2012.6,2012.2,11.76527806]
[1770458344554,0.00628105,2012.6,2012.2,11.76527806]
[1770458345661,5.72587275,2012.9,2012.2,11.76527806]
[1770458346254,5.72587275,2012.9,2012.4,11.58202698]
[1770458346457,5.73461596,2013.0,2012.5,0.24861]
[1770458346758,5.73927771,2013.0,2012.6,11.58202698]
[1770458347552,4.60856586,2013.0,2012.6,11.58202698]
[1770458348260,4.60856586,2013.0,2012.5,11.83063698]
[1770458349956,4.60856586,2013.0,2012.2,5.94138877]
[1770458350163,4.37144911,2012.9,2012.1,11.8079488]
[1770458350762,4.37144911,2012.9,2012.3,0.24862]
[1770458350962,4.37144911,2012.9,2012.2,11.5592988]
[1770458350963,4.37144911,2012.9,2012.4,11.8079188]
[1770458351561,4.37880717,2012.8,2012.4,0.24862]
[1770458351762,4.37880717,2012.8,2012.4,11.8079188]
[1770458351959,4.37880717,2012.8,2012.5,0.24861]
[1770458354964,4.43453616,2012.9,2012.5,11.8079088]
[1770458355563,4.43142307,2013.0,2012.7,11.8078788]
[1770458356162,0.00466175,2013.0,2012.7,11.8078788]
[1770458356358,4.42676132,2013.1,2012.7,11.8078788]
[1770458357357,3.97987982,2013.4,2013.0,11.5592988]
[1770458358359,3.97987982,2013.4,2012.9,0.24856]
[1770458358360,2.9251248,2014.0,2013.3,11.8078088]
[1770458358663,3.44655982,2013.9,2013.1,11.5592988]
[1770458358866,3.44655982,2013.9,2013.3,0.24851]
[1770458359172,3.44655982,2013.9,2013.1,11.5592988]
[1770458359371,3.45183561,2013.9,2013.3,0.24851]
[1770458359669,2.98625434,2013.8,2012.8,11.5592988]
[1770458359967,2.98625434,2013.8,2012.8,11.8078688]
[1770458360360,2.98625434,2013.8,2012.6,11.5592988]
[1770458360560,2.98625434,2013.8,2012.6,11.56506202]
[1770458360765,2.73768434,2013.7,2012.6,11.56506202]
[1770458361466,2.73768434,2013.7,2012.8,0.24857]
[1770458361773,1.77399796,2012.8,2012.6,0.00576322]
[1770458361972,40.8,2012.9,2012.5,14.94990824]
[1770458362471,40.8,2012.9,2012.6,11.83955121]
[1770458362671,2.9251248,2013.7,2012.5,15.19851824]
[1770458362971,2.9251248,2013.7,2012.5,15.2039752]
[1770458363367,0.12140264,2013.6,2012.5,15.2039752]
[1770458363567,0.12140264,2013.0,2012.5,15.2039752]
[1770458363764,0.12140264,2013.0,2012.6,11.77884989]
[1770458363967,0.12140264,2013.0,2012.5,3.36442399]
[1770458364168,0.12140264,2013.0,2012.5,12.03291685]
[1770458364466,0.12140264,2013.0,2012.5,0.25406696]
[1770458364666,0.12140264,2012.8,2012.5,0.25406696]
[1770458366373,0.12100804,2013.5,2012.5,12.03311415]
[1770458366572,0.12100804,2013.5,2012.9,11.77904719]
[1770458367265,0.12100804,2013.5,2012.9,12.02760719]
[1770458368562,0.45138288,2013.7,2013.1,11.61385977]
[1770458368762,0.45138288,2013.8,2013.2,11.86236977]
[1770458371777,0.45138288,2013.8,2013.0,11.67248545]
[1770458371972,0.00527579,2013.9,2013.0,11.67248545]
[1770458372276,0.09089731,2013.9,2013.3,11.79674045]
[1770458372476,0.08562152,2013.8,2013.3,11.79674045]
[1770458372877,0.00527579,2013.9,2013.3,11.79674045]
[1770458373171,0.08562152,2014.2,2013.5,11.79674045]
[1770458373376,0.10843193,2014.1,2013.5,11.79674045]
[1770458374172,0.11268017,2014.1,2013.4,0.24849]
[1770458374374,40.8,2013.5,2013.4,0.24849]
[1770458374577,0.11268017,2014.1,2013.4,12.03382524]
[1770458374578,0.10843193,2013.8,2013.4,12.03382524]
[1770458374972,0.10843193,2013.8,2013.4,0.24849]
[1770458375172,0.10843193,2013.8,2013.1,11.83955121]
[1770458376587,2.92937304,2014.1,2013.4,12.0889755]
[1770458376882,0.00424824,2014.1,2013.4,12.0889755]
[1770458378072,0.0107655,2014.1,2013.6,11.83722687]
[1770458378983,0.00424824,2014.1,2013.6,11.83722687]
[1770458379285,0.00424824,2014.1,2013.6,12.08569687]
[1770458379583,0.00424824,2014.1,2013.6,15.1960539]
[1770458379774,0.0953963,2014.3,2013.7,11.80947799]
[1770458380078,0.0953963,2014.3,2013.6,0.24847]
[1770458380079,0.06201503,2014.2,2013.6,0.24847]
[1770458380281,0.06201503,2014.2,2013.2,11.80947799]
[1770458380784,0.06201503,2014.0,2012.9,11.80947799]
[1770458380984,0.06201503,2013.9,2012.9,11.80947799]
[1770458381487,40.8,2013.1,2012.9,11.80947799]
[1770458381785,0.02528338,2013.3,2012.8,0.24857]
[1770458381786,0.02528338,2013.7,2012.8,12.07641381]
[1770458382983,0.02528338,2013.5,2012.8,12.07641381]
[1770458384188,5.82851344,2014.1,2013.6,9.93563407]
[1770458384386,10.8964855,2014.0,2013.5,1.19248]
[1770458384890,10.8964855,2014.0,2013.6,0.944]
[1770458385292,11.63003208,2014.2,2013.6,0.944]
[1770458385493,11.63003208,2014.2,2013.7,6.07200246]
[1770458385688,11.63003208,2014.2,2013.8,0.94308971]
[1770458385892,7.10723174,2014.2,2013.8,6.07200246]
[1770458386894,7.11282305,2014.2,2013.8,6.07200246]
[1770458387095,7.11282305,2014.2,2013.7,13.02782842]
[1770458387295,7.11282305,2014.2,2013.8,10.58909651]
[1770458387490,7.11282305,2014.2,2013.8,5.46145321]
[1770458388301,7.11282305,2014.2,2013.7,6.01426595]
[1770458388599,7.11282305,2014.2,2013.8,5.12581623]
[1770458388800,7.11282305,2014.2,2013.6,10.71875413]
[1770458389097,7.11282305,2014.2,2013.7,5.12581642]
[1770458389697,7.11282305,2014.2,2013.7,2.96448398]
[1770458389897,7.11282305,2014.2,2013.7,8.08965512]
[1770458390093,7.11282305,2014.2,2013.6,3.21295398]
[1770458390502,7.11282305,2014.2,2013.6,5.37373562]
[1770458390700,7.11282305,2014.2,2013.6,0.24847]
[1770458391399,40.8,2013.7,2013.6,0.24847]
[1770458391598,11.62559524,2013.9,2013.5,8.08960865]
[1770458391996,11.62559524,2013.9,2013.6,5.82848825]
[1770458392198,11.62559524,2013.9,2013.5,2.96448398]
[1770458392399,11.62559524,2013.9,2013.5,8.79297223]
[1770458392600,11.62559524,2013.9,2013.6,5.31455548]
[1770458393005,40.8,2013.7,2013.6,5.31455548]
[1770458393200,40.8,2013.7,2013.5,8.79297223]
[1770458393201,11.62559524,2013.9,2013.5,8.79297223]
[1770458393703,11.62559524,2013.9,2013.6,0.24847]
[1770458394303,40.8,2013.7,2013.6,3.21295398]
[1770458394501,11.62559524,2013.9,2013.6,8.27995732]
[1770458396303,11.63118655,2014.2,2013.8,9.02120023]
[1770458396500,11.62559524,2014.6,2014.1,6.05671625]
[1770458396709,11.62559524,2014.7,2014.2,5.16661143]
[1770458397008,11.62559524,2014.7,2014.2,9.02120023]
[1770458397210,11.62559524,2014.7,2014.3,14.18712637]
[1770458397412,11.62559524,2014.7,2014.1,13.68085913]
[1770458397707,11.63197146,2014.7,2014.2,5.11742628]
[1770458397908,11.63197146,2014.7,2014.2,0.41478563]
[1770458398108,11.63197146,2014.7,2014.2,5.11722281]
[1770458398503,11.63197146,2014.7,2014.2,14.09365376]
[1770458398705,11.63197146,2014.7,2014.2,8.97643095]
[1770458399805,11.63197146,2014.7,2014.2,0.40984253]
[1770458400108,11.63197146,2014.7,2014.1,5.36855018]
[1770458400305,11.63197146,2014.7,2013.3,10.74382424]
[1770458400710,11.62559524,2014.6,2013.3,0.4171351]
[1770458401003,11.62559524,2014.3,2012.8,10.99239424]
[1770458401203,11.62559524,2014.1,2012.8,0.25205202]
[1770458401607,11.62559524,2013.2,2012.6,10.74382424]
[1770458401806,11.62559524,2013.2,2012.8,10.99239424]
[1770458402007,11.62559524,2014.2,2013.0,10.99237424]
[1770458402510,11.62984898,2014.2,2013.1,10.99235424]
[1770458403010,11.62559524,2013.7,2013.1,10.99235424]
[1770458404208,11.62559524,2014.1,2013.1,10.99235424]
[1770458404508,11.62559524,2014.1,2013.7,10.99228424]
[1770458404703,11.62559524,2014.1,2013.7,0.24846]
[1770458405206,11.62559524,2014.1,2013.1,0.24853]
[1770458406508,11.62559524,2014.1,2013.1,11.2688405]
[1770458406712,11.62559524,2014.1,2013.3,11.2688205]
[1770458407210,11.62559524,2014.1,2013.4,11.0203105]
[1770458407408,11.62559524,2014.1,2013.3,11.2688205]
[1770458410815,11.62559524,2014.1,2013.1,11.12983031]
[1770458411612,11.65311775,2013.6,2013.1,11.12983031]
[1770458413511,40.8,2013.2,2013.1,11.12983031]
[1770458413711,11.65311775,2013.6,2013.1,11.12983031]
[1770458415815,11.65311775,2014.1,2013.1,11.12983031]
[1770458419224,11.65311775,2014.1,2013.0,0.25402948]
[1770458420023,11.65311775,2014.1,2012.8,0.41917702]
[1770458420218,11.65311775,2014.1,2013.0,0.24855]
[1770458420524,11.65311775,2014.1,2012.2,3.10979533]
[1770458420525,11.65311775,2014.1,2013.2,11.37835031]
[1770458420728,11.65311775,2014.1,2013.2,0.24852]
[1770458420921,11.65311775,2014.1,2013.2,11.37835031]
[1770458421125,11.65311775,2014.1,2013.2,11.38284376]
[1770458421425,11.65311775,2013.6,2013.2,11.38284376]
[1770458421818,11.65311775,2013.8,2013.2,11.38284376]
[1770458422626,11.65311775,2013.7,2013.2,11.38284376]
[1770458423520,25.6,2013.3,2013.2,11.38284376]
[1770458423721,11.65311775,2013.7,2013.2,11.38284376]
[1770458424623,25.1,2013.3,2013.2,11.38284376]
[1770458425228,11.65311775,2013.7,2013.2,11.38284376]
[1770458425527,11.65311775,2014.1,2013.2,11.38284376]
[1770458425927,0.00425374,2014.2,2013.6,11.12983031]
[1770458427627,11.65737149,2014.2,2013.5,11.37832031]
[1770458427825,11.65737149,2014.2,2013.3,11.12983031]
[1770458428527,11.65737149,2014.2,2013.2,11.13432376]
[1770458429421,11.65737149,2014.2,2013.3,11.12983031]
[1770458429622,11.65737149,2014.2,2013.2,11.13432376]
[1770458430926,11.65737149,2014.2,2013.2,0.00449345]
[1770458431429,11.65311775,2013.7,2013.2,11.13432376]
[1770458431823,11.65311775,2013.7,2013.2,0.00449345]
[1770458432124,11.65311775,2013.7,2013.2,11.13432376]
[1770458432423,40.8,2013.3,2013.2,11.13432376]
[1770458432618,11.65311775,2013.6,2013.2,11.03338255]
[1770458433528,11.65311775,2013.6,2013.2,11.03963719]
[1770458434334,11.65311775,2014.1,2013.2,11.03963719]
[1770458434536,11.65311775,2013.8,2013.2,11.28815719]
[1770458438032,10.76677789,2014.1,2013.2,11.28815719]
[1770458440837,10.76677789,2014.1,2013.3,0.24851]
[1770458441036,10.76677789,2014.1,2013.3,12.03421603]
[1770458441639,10.76677789,2013.9,2013.3,12.03421603]
[1770458442738,10.76677789,2013.8,2013.3,12.03421603]
[1770458442942,10.76677789,2014.1,2013.3,12.03421603]
[1770458443137,10.76677789,2014.1,2013.5,11.78570603]
[1770458443539,40.8,2013.6,2013.5,11.78570603]
[1770458443840,10.76677789,2013.8,2013.5,7.25544583]
[1770458444144,10.76677789,2013.8,2013.4,11.78570603]
[1770458444644,40.8,2013.5,2013.4,11.78570603]
[1770458446940,40.8,2013.5,2013.3,12.03421603]
[1770458449650,10.76677789,2013.8,2013.3,12.03421603]
[1770458451548,40.8,2013.4,2013.3,12.03421603]
[1770458451748,10.76677789,2013.8,2013.3,12.03421603]
[1770458452850,40.8,2013.4,2013.3,12.03421603]
[1770458456050,10.76677789,2014.0,2013.4,11.78570603]
[1770458457048,10.76677789,2014.1,2013.4,11.78570603]
[1770458457847,10.76677789,2014.1,2013.4,12.03419603]
[1770458458152,10.76677789,2014.0,2013.4,12.03419603]
[1770458458353,10.76677789,2014.1,2013.6,12.03418603]
[1770458459351,10.77103163,2014.2,2013.6,12.03418603]
[1770458459550,10.77103163,2014.2,2013.8,12.03415603]
[1770458460646,10.76677789,2014.7,2013.9,12.03414603]
[1770458460855,10.76677789,2014.7,2014.1,11.78570603]
[1770458461046,10.76677789,2014.7,2014.0,2.9757134]
[1770458461251,10.76677789,2014.7,2013.6,11.78570603]
[1770458461648,10.76677789,2014.1,2013.6,11.78570603]
[1770458462854,10.76677789,2014.6,2013.9,11.78570603]
[1770458463557,10.76677789,2014.6,2014.1,11.78570603]
[1770458471462,40.8,2014.2,2014.0,0.24842]
[1770458471760,40.8,2014.2,2014.0,11.42638041]
[1770458472056,11.16220653,2014.1,2013.8,11.17796041]
[1770458472261,11.16220653,2014.1,2013.5,11.42645041]
[1770458472262,10.03210097,2014.1,2013.5,11.42645041]
[1770458473058,10.03210097,2014.1,2013.2,0.00625464]
[1770458473355,10.03210097,2014.1,2013.3,11.17796041]
[1770458474059,10.03210097,2014.1,2013.2,11.18421505]
[1770458474260,10.03210097,2014.1,2013.2,0.00625464]
[1770458474463,10.03210097,2014.1,2013.2,11.18421505]
[1770458475257,10.03210097,2014.1,2013.2,0.00625464]
[1770458475461,11.16220653,2014.0,2013.0,0.24855]
[1770458476262,11.16220653,2013.9,2013.0,0.24855]
[1770458476558,16.13420653,2013.9,2013.0,0.25472775]
[1770458476759,11.16220653,2013.8,2013.0,0.25472775]
[1770458476957,40.8,2013.1,2013.0,0.25472775]
[1770458477157,11.16220653,2013.5,2013.0,0.24854]
[1770458477353,11.16220653,2013.5,2013.1,11.17796041]
[1770458477563,11.16220653,2013.5,2013.0,11.42650041]
[1770458477955,11.16220653,2013.5,2013.0,0.24854]
[1770458478154,40.8,2013.1,2013.0,0.25269683]
[1770458478357,40.8,2013.1,2012.9,11.17796041]
[1770458478557,40.8,2013.1,2013.0,0.24854]
[1770458478757,11.16220653,2013.3,2013.0,11.42650041]
[1770458478965,11.16220653,2013.3,2013.0,0.24854]
[1770458479165,11.16220653,2013.3,2013.0,11.42650041]
[1770458479359,11.16220653,2013.3,2013.0,0.25473816]
[1770458479665,11.16220653,2013.0,2012.8,0.44609179]
[1770458479864,11.16220653,2013.0,2012.7,11.17796041]
[1770458480461,11.16220653,2013.0,2012.3,11.17796041]
[1770458480668,11.16220653,2013.0,2012.3,11.1840938]
[1770458482761,11.16220653,2013.0,2012.3,11.6627242]
[1770458483461,40.8,2013.1,2012.3,11.6627242]
[1770458483663,0.00605752,2013.5,2012.3,11.6627242]
[1770458483664,11.16220653,2013.4,2012.6,11.17796041]
[1770458483860,11.16826405,2013.5,2012.6,11.17796041]
[1770458484459,11.16826405,2013.5,2012.8,0.24857]
[1770458484664,11.16826405,2013.5,2012.9,11.17796041]
[1770458484859,0.00605752,2013.5,2012.9,11.42652041]
[1770458485861,15.66852682,2013.4,2012.9,11.42652041]
[1770458486364,0.00605752,2013.5,2012.9,11.42652041]
[1770458486865,11.16826405,2013.5,2012.9,11.42652041]
[1770458488672,11.16220653,2014.0,2013.1,11.42649041]
[1770458489569,11.16608034,2014.0,2013.1,11.42649041]
[1770458490872,11.16608034,2014.0,2013.3,11.17796041]
[1770458492068,11.16608034,2014.0,2013.3,11.42647041]
[1770458495275,0.00387381,2014.0,2013.6,11.17796041]
[1770458495473,0.24824,2015.5,2013.8,11.17796041]
[1770458495474,11.16220653,2014.4,2013.8,11.17796041]
[1770458495673,11.16220653,2014.4,2013.8,11.42641041]
[1770458496672,10.86648564,2014.4,2013.8,11.43267108]
[1770458500779,0.00541883,2014.4,2013.8,11.43267108]
[1770458500974,10.86106681,2014.7,2014.2,10.68536324]
[1770458501373,10.86106681,2014.7,2013.8,10.69162391]
[1770458501679,10.86106681,2014.7,2013.8,10.94007391]
[1770458501983,10.8668575,2014.7,2013.8,10.94007391]
[1770458504882,10.8668575,2014.7,2014.0,10.68536324]
[1770458506778,10.8668575,2014.7,2013.9,0.24844]
[1770458506975,10.8668575,2014.7,2013.8,0.00626067]
[1770458507287,10.8668575,2014.7,2013.4,10.68536324]
[1770458507288,10.86106681,2014.5,2013.4,10.68536324]
[1770458508278,10.86106681,2014.5,2013.4,10.68955999]
[1770458509180,10.86106681,2014.2,2013.4,0.00419675]
[1770458510681,10.86106681,2014.2,2013.1,10.68536324]
[1770458510682,10.86106681,2014.0,2012.8,4.43768714]
[1770458510878,10.86106681,2013.6,2012.3,11.16399364]
[1770458511079,10.86106681,2013.4,2012.3,11.16399364]
[1770458511279,10.86106681,2013.4,2012.3,0.4786304]
[1770458511586,10.86106681,2013.4,2012.3,10.68536324]
[1770458511787,10.86106681,2013.4,2012.3,10.69173483]
[1770458512082,10.86106681,2013.4,2011.8,3.1108075]
[1770458512083,10.86106681,2013.1,2011.8,10.68536324]
[1770458512276,10.86106681,2013.1,2012.2,0.24865]
[1770458513085,10.86662717,2013.1,2012.2,0.25385174]
[1770458514387,3.1108075,2013.0,2011.8,11.16631033]
[1770458514590,10.86106681,2012.6,2011.4,10.68536324]
[1770458514892,10.86106681,2012.6,2011.5,10.68536324]
[1770458515284,10.86106681,2012.3,2011.0,10.93415324]
[1770458515484,10.86106681,2012.3,2011.0,11.40245754]
[1770458516493,10.86106681,2012.9,2011.7,10.68536324]
[1770458516686,10.86106681,2012.9,2011.7,10.93406324]
[1770458517287,10.86106681,2012.8,2011.7,10.93406324]
[1770458517487,10.86106681,2012.8,2011.7,0.2487]
[1770458517687,10.86106681,2012.5,2011.5,10.68536324]
[1770458519185,10.86106681,2012.5,2011.5,10.93409324]
[1770458521089,10.86106681,2013.0,2011.7,10.68536324]
[1770458522098,10.86106681,2013.0,2011.9,10.68536324]
[1770458522596,10.86106681,2013.0,2012.3,10.68536324]
[1770458523201,0.00556036,2013.1,2012.3,10.68536324]
[1770458523588,10.86662717,2013.1,2012.3,10.68536324]
[1770458523789,0.00556036,2013.1,2012.3,10.93400324]
[1770458523995,10.86106681,2013.4,2012.5,10.68536324]
[1770458524186,10.86106681,2013.4,2012.5,10.93397324]
[1770458524690,10.86106681,2014.0,2012.5,10.68536324]
[1770458524901,10.86106681,2014.0,2012.4,3.1108075]
[1770458524902,10.86106681,2014.0,2012.8,10.93393324]
[1770458525195,10.86512941,2014.0,2012.8,10.93878754]
[1770458526889,11.62004697,2013.7,2012.8,0.2534243]
[1770458528397,11.62004697,2013.7,2012.0,4.43768714]
[1770458528398,11.62004697,2013.4,2012.2,11.85223647]
[1770458529495,11.62004697,2013.4,2012.2,11.85659304]
[1770458529794,11.65537815,2012.5,2012.2,0.25299657]
[1770458529999,11.66093349,2012.5,2012.2,0.25299657]
[1770458530500,0.00555534,2012.5,2012.2,11.3038234]
[1770458531303,11.66093349,2012.5,2012.2,0.00435657]
[1770458531498,11.66093349,2012.5,2011.6,11.29954683]
[1770458531697,11.65537815,2013.1,2011.9,11.05082683]
[1770458531898,11.65537815,2013.1,2012.3,0.24863]
[1770458533003,11.66055089,2013.1,2012.3,0.25254339]
[1770458533704,11.66055089,2013.1,2012.3,11.30337022]
[1770458534206,11.66055089,2013.1,2012.3,0.25254339]
[1770458534408,11.66055089,2013.1,2012.3,0.00391339]
[1770458534804,14.77135839,2013.1,2012.3,0.00391339]
[1770458535002,11.65537815,2013.0,2011.8,11.29952683]
[1770458535908,11.65537815,2013.0,2011.8,11.30360092]
[1770458537006,11.65537815,2013.0,2011.8,0.25277409]
[1770458537405,11.65537815,2013.0,2011.9,11.29950683]
[1770458537608,11.65537815,2013.0,2012.1,11.05082683]
[1770458538912,11.65537815,2013.0,2012.0,0.24867]
[1770458539312,11.65537815,2013.0,2012.1,0.24865]
[1770458541709,11.65537815,2013.0,2011.8,0.00407409]
[1770458541912,11.65537815,2012.9,2011.8,0.00407409]
[1770458542116,11.65537815,2012.8,2011.8,0.00407409]
[1770458542511,16.62737815,2012.8,2011.8,0.00407409]
[1770458542717,11.65537815,2012.7,2011.8,0.00407409]
[1770458546024,14.9865259,2011.9,2011.8,0.00407409]
[1770458546325,14.9865259,2011.9,2011.6,0.24872]
[1770458546525,11.65537815,2012.8,2011.6,11.29954683]
[1770458546820,11.65537815,2012.8,2011.8,11.05082683]
[1770458547027,11.65537815,2012.8,2012.1,11.05082683]
[1770458548525,11.65537815,2013.0,2012.2,11.29947683]
[1770458551628,11.65537815,2013.0,2011.9,7.38016902]
[1770458551819,11.65537815,2013.0,2011.6,7.66543371]
[1770458551820,11.65537815,2013.0,2011.7,11.29953683]
[1770458552220,11.65537815,2013.0,2011.8,11.05082683]
[1770458554628,11.65537815,2013.0,2011.8,11.29951683]
[1770458556329,11.65537815,2013.0,2011.9,11.26569114]
[1770458556831,11.65537815,2013.0,2011.9,11.51437114]
[1770458557027,11.65537815,2013.0,2012.1,11.26569114]
[1770458557332,11.65537815,2013.0,2012.2,2.94248188]
[1770458557626,11.65537815,2013.0,2012.4,11.51431114]
[1770458557827,11.65537815,2013.0,2012.4,0.24862]
[1770458558427,11.65537815,2013.0,2012.4,11.51431114]
[1770458558825,11.65537815,2013.0,2012.4,0.24862]
[1770458560930,2.38863402,2012.5,2012.4,0.24862]
[1770458561529,11.01364287,2012.7,2012.4,0.24862]
[1770458561734,11.01364287,2012.7,2012.1,14.20817302]
[1770458562231,11.01364287,2012.7,2011.6,4.43768714]
[1770458562531,11.01364287,2012.6,2011.6,11.26569114]
[1770458566727,11.01364287,2012.6,2011.5,4.68641714]
[1770458566940,11.01364287,2012.4,2011.5,11.51442114]
[1770458567543,11.01364287,2012.4,2011.7,11.26569114]
[1770458568338,11.01364287,2012.4,2011.9,11.26569114]
[1770458568638,8.74794291,2013.1,2011.9,11.51438114]
[1770458568639,11.01364287,2012.6,2011.9,11.51438114]
[1770458570746,11.01364287,2012.8,2012.1,11.26569114]
[1770458571839,11.01364287,2012.8,2012.0,0.24866]
[1770458573947,11.01364287,2012.8,2012.0,11.51435114]
[1770458575348,11.01364287,2012.8,2012.2,11.26569114]
[1770458577047,11.01364287,2013.0,2012.4,11.26569114]
[1770458578443,11.01364287,2013.0,2012.3,11.51432114]
[1770458580448,11.01364287,2013.0,2012.4,0.24861]
[1770458580644,0.00517274,2013.1,2012.5,11.51430114]
[1770458580645,11.01881561,2013.1,2012.5,11.51430114]
[1770458581045,0.00517274,2013.1,2012.5,11.51430114]
[1770458581451,0.00517274,2013.1,2012.6,0.24859]
[1770458581641,11.01364287,2013.2,2012.7,11.26569114]
[1770458582552,11.01364287,2013.4,2012.7,11.26569114]
[1770458582749,11.01364287,2013.4,2012.8,0.24857]
[1770458583053,5.84713071,2013.9,2012.9,11.26569114]
[1770458583248,11.01364287,2013.8,2012.9,11.26569114]
[1770458583644,11.01886331,2013.8,2012.9,11.27031277]
[1770458583850,11.01886331,2013.8,2012.9,11.51886277]
[1770458584154,11.01886331,2013.8,2013.1,11.26569114]
[1770458585547,11.01886331,2013.8,2013.1,11.51423114]
[1770458586350,0.00522044,2013.8,2013.1,11.51423114]
[1770458586556,11.11651262,2013.8,2013.3,10.95114812]
[1770458586853,0.00522044,2013.8,2013.3,10.95114812]
[1770458587053,0.00522044,2013.8,2013.3,11.19964812]
[1770458587256,11.11129218,2014.0,2013.3,11.19964812]
[1770458588449,11.1158686,2014.0,2013.3,11.19964812]
[1770458590758,10.66420088,2014.4,2013.9,11.23593044]
[1770458591056,10.66420088,2015.2,2013.9,11.23593044]
[1770458591853,10.67016894,2015.2,2013.9,11.23593044]
[1770458592658,10.67016894,2015.2,2013.9,11.48437044]
[1770458593658,10.67016894,2015.2,2014.1,11.23593044]
[1770458593852,10.67016894,2015.2,2014.1,11.48434044]
[1770458595160,10.67016894,2015.2,2014.1,11.98117794]
[1770458597957,10.67016894,2015.2,2014.3,11.48432044]
[1770458599457,0.00596806,2015.2,2014.6,11.23593044]
[1770458599662,0.00596806,2015.2,2014.6,11.48895851]
[1770458600063,10.66420088,2016.3,2014.6,11.48895851]
[1770458600858,10.66420088,2016.3,2014.8,11.23593044]
[1770458601062,10.66862761,2016.3,2014.8,11.23593044]
[1770458601460,3.10427426,2016.0,2014.8,11.23593044]
[1770458601663,10.66420088,2015.9,2014.7,11.48426044]
[1770458602159,10.66420088,2015.9,2014.9,11.23593044]
[1770458602359,10.66420088,2015.9,2014.6,11.24060851]
[1770458603058,10.66420088,2015.9,2014.9,11.23593044]
[1770458603259,10.66420088,2015.9,2014.9,11.48424044]
[1770458605262,10.66420088,2015.9,2015.2,11.48420044]
[1770458606559,10.66420088,2015.9,2015.2,0.24827]
[1770458606762,10.66420088,2015.9,2014.8,11.23593044]
[1770458607465,10.66420088,2015.9,2014.7,11.48427044]
[1770458607862,10.66420088,2015.9,2015.0,11.23593044]
[1770458608068,10.66420088,2015.9,2015.0,11.48423044]
[1770458609268,10.66420088,2015.9,2015.2,11.23593044]
[1770458610068,10.66420088,2015.9,2015.2,11.48421044]
[1770458610570,10.66420088,2016.2,2015.4,11.23593044]
[1770458611369,10.66420088,2016.2,2015.4,11.48418044]
[1770458613370,10.66420088,2016.2,2015.5,11.23593044]
[1770458613563,0.00442673,2016.3,2015.5,11.48417044]
[1770458614867,10.66862761,2016.3,2015.5,11.48417044]
[1770458615266,10.66420088,2016.9,2015.9,11.23593044]
[1770458615664,10.66420088,2016.9,2015.9,11.48412044]
[1770458615864,11.07826602,2017.4,2016.1,0.24816]
[1770458616066,11.07826602,2017.4,2016.1,11.65287753]
[1770458616465,11.08228607,2017.4,2016.1,11.65287753]
[1770458617261,11.08228607,2017.4,2016.3,11.65285753]
[1770458617465,11.08228607,2017.4,2016.3,11.40471753]
[1770458617868,11.08228607,2017.4,2016.6,11.40471753]
[1770458618268,11.08228607,2017.4,2016.6,11.65280753]
[1770458619172,11.08228607,2017.4,2016.8,11.40471753]
[1770458620275,4.40830829,2018.3,2017.2,0.24803]
[1770458620276,11.07826602,2017.8,2017.2,0.24803]
[1770458621076,11.07826602,2017.8,2016.6,0.2481]
[1770458621372,11.08428575,2017.8,2016.8,11.40471753]
[1770458621773,11.08428575,2017.8,2016.7,0.24809]
[1770458622370,11.08428575,2017.8,2016.7,11.65280753]
[1770458623373,11.08428575,2017.8,2017.0,0.24805]
[1770458623769,11.08428575,2017.8,2017.2,11.65274753]
[1770458624369,11.07826602,2018.7,2017.9,11.40471753]
[1770458624676,11.07826602,2018.7,2017.8,0.24796]
[1770458624867,11.07826602,2018.7,2017.9,11.40471753]
[1770458625071,11.07826602,2018.7,2018.1,11.40471753]
[1770458625271,11.07826602,2019.1,2018.3,11.65260753]